bitfinex-derivatives/quotes_ETHF0:USTF0_20250830
["timestamp","ask_amount","ask_price","bid_price","bid_amount"]
[1756592045908,0.18989123,4342.8,4342.7,3.441]
[1756592046815,0.1899016,4342.8,4342.7,3.441]
[1756592048018,0.1899016,4342.8,4342.7,5.50875774]
[1756592048218,0.1899016,4342.8,4342.7,3.441]
[1756592050012,0.7080016,4342.8,4342.7,3.2078]
[1756592050316,0.7080016,4342.8,4342.7,3.4398]
[1756592054418,0.7080016,4342.8,4342.7,3.441]
[1756592055418,0.7080016,4342.8,4342.7,3.4398]
[1756592055817,0.7080016,4342.8,4342.7,3.2078]
[1756592056016,0.7080016,4342.8,4342.7,3.4398]
[1756592056314,0.7080016,4342.8,4342.7,3.441]
[1756592056721,0.7076101,4342.8,4342.7,3.441]
[1756592058624,0.7076101,4342.8,4342.7,3.209]
[1756592058824,0.7076101,4342.8,4342.7,3.441]
[1756592061121,0.7076101,4342.8,4342.7,3.442]
[1756592067429,0.70761521,4342.8,4342.7,3.442]
[1756592072934,0.70761521,4342.8,4342.7,0.2342]
[1756592074339,0.707598,4342.8,4342.7,0.2342]
[1756592077840,0.5181,4342.8,4342.7,0.2342]
[1756592078038,0.70760564,4342.8,4342.7,0.2342]
[1756592078938,0.70765587,4342.8,4342.7,0.2342]
[1756592081542,0.70870586,4342.8,4342.7,0.2342]
[1756592085845,0.70870586,4342.8,4342.7,0.232]
[1756592088546,0.5181,4342.8,4342.7,0.232]
[1756592088746,0.70870824,4342.8,4342.7,0.232]
[1756592091745,0.70870824,4342.8,4342.7,0.233]
[1756592092339,0.70870824,4342.8,4342.7,0.2345]
[1756592093445,0.70870824,4342.8,4342.7,0.0025]
[1756592093646,0.5181,4342.8,4342.7,0.2345]
[1756592094444,0.5181,4342.8,4342.6,3.2078]
[1756592094644,0.5064,4342.8,4342.7,0.232]
[1756592094839,0.5064,4342.8,4342.6,3.2088]
[1756592094840,0.4998,4342.7,4342.6,3.2078]
[1756592095042,0.4998,4342.7,4342.6,3.4398]
[1756592095646,0.4998,4342.7,4342.6,3.4408]
[1756592096452,0.4998,4342.7,4342.6,3.4423]
[1756592099045,3.2078,4343.6,4342.7,0.001]
[1756592099345,0.4998,4343.5,4343.4,0.0025]
[1756592099546,0.4998,4343.5,4343.4,0.2335]
[1756592102251,0.4998,4343.3,4343.2,3.2078]
[1756592102553,0.4998,4343.3,4343.2,3.4388]
[1756592102852,0.4998,4343.3,4343.2,3.2078]
[1756592103052,0.4998,4343.3,4343.2,3.4388]
[1756592103255,0.4998,4343.3,4343.2,0.231]
[1756592103450,0.2996,4343.2,4342.6,3.2078]
[1756592103648,0.4998,4342.7,4342.6,3.2078]
[1756592103847,0.4998,4342.7,4342.6,3.4388]
[1756592106451,0.4998,4342.7,4342.6,3.2078]
[1756592106656,0.4998,4342.7,4342.6,3.4388]
[1756592107750,0.4998,4342.7,4342.6,3.4438]
[1756592110556,0.2996,4342.7,4342.6,3.4438]
[1756592110950,3.2078,4343.3,4342.6,3.4438]
[1756592111251,0.2969,4343.2,4342.7,0.0019]
[1756592111554,0.4907,4342.9,4342.8,0.236]
[1756592114258,0.2969,4342.9,4342.8,0.236]
[1756592114556,0.2969,4343.9,4342.8,0.2341]
[1756592114752,0.4907,4343.2,4343.1,3.2128]
[1756592115056,0.4907,4343.2,4343.1,3.4438]
[1756592116859,0.4907,4343.2,4343.1,0.236]
[1756592117657,0.4907,4343.2,4343.1,0.2341]
[1756592119362,0.4907,4343.2,4343.1,0.236]
[1756592119957,0.2969,4343.2,4343.1,0.236]
[1756592120157,0.2969,4343.9,4343.2,0.0019]
[1756592120358,0.2969,4343.7,4343.2,0.0019]
[1756592121059,0.4907,4343.7,4343.6,0.005]
[1756592121265,0.4907,4343.7,4343.6,0.236]
[1756592122660,3.2078,4344.5,4343.6,0.236]
[1756592122866,0.2969,4344.3,4343.7,0.0011]
[1756592123067,0.1938,4343.8,4343.7,0.0028]
[1756592123368,0.4907,4343.8,4343.7,0.0028]
[1756592123565,0.2969,4344.4,4343.8,0.0011]
[1756592123866,0.4907,4344.4,4344.3,0.0028]
[1756592124069,0.4907,4344.4,4344.3,0.2338]
[1756592124968,0.4907,4344.4,4344.3,0.231]
[1756592132379,0.4907,4344.4,4344.3,0.2338]
[1756592133283,0.2969,4344.4,4344.3,0.46398]
[1756592133482,0.4907,4344.9,4344.8,0.0017]
[1756592133682,0.4907,4344.9,4344.8,0.2338]
[1756592133877,0.4907,4344.9,4344.8,0.2327]
[1756592134184,0.4907,4344.9,4344.8,0.231]
[1756592138181,0.4907,4344.9,4344.1,3.2078]
[1756592138476,0.3068,4344.8,4344.2,0.46118]
[1756592138786,0.3068,4345.2,4344.2,0.46118]
[1756592138985,0.3068,4345.2,4344.3,0.23016]
[1756592139485,0.4988,4344.5,4344.4,0.23016]
[1756592139686,0.3068,4344.4,4344.2,0.231]
[1756592139983,0.3068,4345.2,4344.3,0.23016]
[1756592140487,0.4988,4344.5,4344.4,0.23016]
[1756592140688,0.4988,4344.4,4344.3,0.23016]
[1756592140881,0.3068,4344.3,4344.2,0.23016]
[1756592141081,0.4988,4344.3,4344.2,0.46116]
[1756592141787,0.4988,4344.3,4344.2,0.231]
[1756592144388,3.2078,4345.4,4344.2,0.231]
[1756592144593,0.4988,4344.9,4344.8,3.2078]
[1756592144794,0.4988,4344.9,4344.8,3.4388]
[1756592145994,0.3068,4344.9,4344.8,3.4388]
[1756592146188,0.3068,4345.8,4344.8,3.4388]
[1756592146393,3.2078,4345.9,4344.8,3.66893]
[1756592146589,0.3068,4345.8,4344.8,3.4388]
[1756592146792,0.3068,4345.8,4344.8,3.66893]
[1756592146994,3.2078,4345.9,4344.8,3.66893]
[1756592147288,3.2078,4346.4,4344.8,3.66893]
[1756592147488,3.2078,4346.4,4345.3,3.2078]
[1756592147489,0.4988,4345.4,4345.3,3.2078]
[1756592147795,0.4988,4345.4,4345.3,3.4388]
[1756592150196,0.3068,4345.4,4345.3,3.4388]
[1756592150698,0.4988,4345.4,4345.3,3.4388]
[1756592151600,0.3068,4346.3,4345.3,3.4388]
[1756592151896,3.43790001,4346.4,4345.3,3.4388]
[1756592152293,0.3068,4346.3,4345.3,3.4388]
[1756592152592,3.43790001,4346.4,4345.3,3.4388]
[1756592152797,3.2078,4346.4,4345.3,3.4388]
[1756592152998,0.3068,4346.3,4345.3,3.4388]
[1756592153192,3.43790001,4346.4,4345.3,3.4388]
[1756592153691,0.3068,4346.3,4345.3,3.4388]
[1756592153896,3.43790001,4346.4,4345.3,3.4388]
[1756592154801,0.3068,4346.3,4345.3,3.4388]
[1756592155200,3.2078,4346.4,4345.3,3.4388]
[1756592155396,0.3068,4346.3,4345.3,3.4388]
[1756592156000,3.2078,4346.4,4345.3,3.4388]
[1756592156301,0.3068,4346.3,4345.3,3.4388]
[1756592156501,3.43790001,4346.4,4345.3,3.4388]
[1756592157795,0.23010001,4346.3,4345.3,3.4388]
[1756592157992,0.3068,4346.2,4345.3,3.4388]
[1756592158202,3.2078,4346.4,4345.3,3.4388]
[1756592158502,0.23010001,4346.3,4345.3,3.4388]
[1756592159005,3.2078,4346.4,4345.3,3.4388]
[1756592159201,0.23010001,4346.3,4345.3,3.4388]
[1756592159407,3.2078,4346.4,4345.3,3.4388]
[1756592159706,0.23010001,4346.3,4345.3,3.4388]
[1756592159901,0.3068,4346.2,4345.3,3.4388]
[1756592160105,0.3068,4346.3,4345.3,3.4388]
[1756592160305,3.2078,4346.4,4345.3,3.4388]
[1756592160509,0.23010001,4346.3,4345.3,3.4388]
[1756592160710,3.2078,4346.4,4345.3,3.4388]
[1756592160906,0.23010001,4346.3,4345.3,3.4388]
[1756592161308,3.2078,4346.4,4345.3,3.4388]
[1756592161612,0.23010001,4346.3,4345.3,3.4388]
[1756592161812,0.3068,4346.2,4345.3,3.4388]
[1756592162111,3.2078,4346.4,4345.3,3.4388]
[1756592162311,0.3068,4346.2,4345.3,3.4388]
[1756592162610,3.2078,4346.4,4345.3,3.4388]
[1756592162813,0.23010001,4346.3,4345.3,3.4388]
[1756592163003,0.3068,4346.2,4345.3,3.4388]
[1756592163204,0.23010001,4346.3,4345.3,3.4388]
[1756592163205,0.3068,4346.3,4345.3,3.4388]
[1756592163403,3.2078,4346.4,4345.3,3.4388]
[1756592163609,0.3068,4346.2,4345.3,3.4388]
[1756592163908,0.3068,4346.3,4345.3,3.4388]
[1756592164108,3.2078,4346.4,4345.3,3.4388]
[1756592164309,0.23010001,4346.3,4345.3,3.4388]
[1756592164512,3.2078,4346.4,4345.3,3.4388]
[1756592164815,0.23010001,4346.3,4345.3,3.4388]
[1756592165015,3.2078,4346.4,4345.3,3.4388]
[1756592165313,0.23010001,4346.3,4345.3,3.4388]
[1756592165616,0.3068,4346.2,4345.3,3.4388]
[1756592165914,3.2078,4346.4,4345.3,3.4388]
[1756592166109,0.3068,4346.2,4345.3,3.4388]
[1756592166615,0.23010001,4346.3,4345.3,3.4388]
[1756592166815,0.23010001,4346.3,4345.3,3.66890999]
[1756592167609,0.2838,4346.2,4345.3,3.66890999]
[1756592168015,3.2078,4346.4,4345.3,3.66890999]
[1756592168217,0.23010001,4346.3,4345.3,3.66890999]
[1756592170412,0.2838,4346.2,4345.3,3.66890999]
[1756592170716,3.2078,4346.4,4345.3,3.66890999]
[1756592170918,0.23010001,4346.3,4345.3,3.66890999]
[1756592171113,3.2078,4346.9,4346.1,0.0012]
[1756592171318,3.2078,4346.9,4346.7,0.0012]
[1756592171319,0.4838,4346.8,4346.7,0.0012]
[1756592171808,3.2078,4347.5,4346.3,3.2078]
[1756592171809,0.2,4346.4,4346.3,3.209]
[1756592172014,0.4838,4346.4,4346.3,3.44]
[1756592174707,3.2078,4347.5,4346.3,3.44]
[1756592174906,0.2,4346.9,4346.8,3.209]
[1756592175118,0.4838,4346.9,4346.8,3.44]
[1756592176520,0.2838,4346.9,4346.8,3.44]
[1756592176719,0.2838,4346.9,4346.8,0.2322]
[1756592177120,0.4838,4346.9,4346.8,0.2322]
[1756592178420,0.2838,4347.4,4346.8,0.2322]
[1756592178621,3.2078,4347.5,4346.8,0.2322]
[1756592178816,0.2838,4347.4,4346.8,0.2322]
[1756592180913,0.2,4346.9,4346.8,0.0012]
[1756592181221,0.4838,4346.9,4346.8,0.2322]
[1756592192926,0.4838,4346.9,4346.8,0.0012]
[1756592193127,0.2,4346.9,4346.8,0.231]
[1756592193327,0.4838,4346.9,4346.8,0.231]
[1756592194320,0.4838,4346.9,4346.8,0.2319]
[1756592199430,0.4838,4346.9,4346.8,0.231]
[1756592201933,0.4966,4346.8,4346.7,3.2078]
[1756592202233,0.4966,4346.8,4346.7,3.4388]
[1756592203229,3.2078,4348.0,4346.7,3.66886]
[1756592203438,0.4966,4347.8,4347.7,3.2078]
[1756592203635,0.4966,4347.8,4347.7,3.4388]
[1756592207839,0.4966,4347.8,4347.7,3.2078]
[1756592208040,0.4966,4347.8,4347.7,3.4388]
[1756592216743,0.4966,4347.8,4347.7,3.2078]
[1756592216943,0.4966,4347.8,4347.7,3.4388]
[1756592219448,0.4966,4347.8,4347.7,3.2078]
[1756592219649,0.4966,4347.8,4347.7,3.4388]
[1756592220449,0.4966,4347.8,4347.7,3.2078]
[1756592220644,0.4966,4347.8,4347.7,3.4388]
[1756592222054,0.4966,4348.3,4347.7,3.4388]
[1756592222255,0.2079,4348.2,4347.7,3.4388]
[1756592222554,0.2079,4348.4,4347.7,3.4388]
[1756592222756,0.2079,4348.2,4347.7,3.4388]
[1756592223062,0.2079,4348.4,4347.7,3.4388]
[1756592223247,3.2078,4348.5,4347.7,3.4388]
[1756592223955,0.2887,4348.3,4347.7,3.4388]
[1756592224159,0.2887,4348.4,4347.7,3.4388]
[1756592224359,0.2079,4348.3,4347.7,3.4388]
[1756592224560,0.2079,4348.2,4347.7,3.4388]
[1756592224760,0.2079,4348.4,4347.7,3.4388]
[1756592224954,0.2887,4348.4,4347.7,3.4388]
[1756592225260,3.2078,4348.5,4347.7,3.4388]
[1756592225755,0.4966,4348.3,4347.7,3.4388]
[1756592226062,0.2887,4348.1,4347.7,3.4388]
[1756592226259,0.22997,4348.9,4347.7,3.4388]
[1756592226450,0.59719155,4348.8,4347.7,3.4388]
[1756592226655,0.2887,4348.7,4347.7,3.4388]
[1756592226858,0.22998,4348.7,4347.7,3.4388]
[1756592227052,3.2078,4349.0,4347.7,3.4388]
[1756592227258,0.82722527,4348.9,4347.7,3.4388]
[1756592227462,0.59725527,4348.8,4347.7,3.4388]
[1756592227659,0.2972,4348.3,4347.7,3.4388]
[1756592227958,0.22998,4348.7,4347.7,3.4388]
[1756592228260,0.22997,4348.9,4347.7,3.4388]
[1756592228567,0.4926,4348.6,4347.7,3.4388]
[1756592228758,0.4926,4348.5,4347.7,3.4388]
[1756592228958,0.2972,4348.4,4347.7,3.4388]
[1756592229164,0.2972,4348.3,4347.7,3.4388]
[1756592229758,0.2972,4348.9,4348.2,3.2078]
[1756592229965,0.4926,4348.9,4348.3,0.231]
[1756592231064,0.1954,4348.9,4348.7,3.2078]
[1756592231367,0.2972,4348.8,4348.7,3.2078]
[1756592231560,0.2972,4348.8,4348.7,3.4388]
[1756592231866,0.4926,4348.8,4348.7,3.4388]
[1756592241273,0.2972,4348.8,4348.7,3.4388]
[1756592244070,0.4926,4349.4,4348.7,3.4388]
[1756592245176,0.1954,4349.4,4348.7,3.4388]
[1756592245475,3.2078,4349.5,4348.7,3.4388]
[1756592245476,0.4926,4349.3,4348.7,3.4388]
[1756592246676,0.2972,4349.4,4348.7,3.2078]
[1756592246976,0.4926,4348.9,4348.8,0.231]
[1756592249577,0.2972,4348.9,4348.8,0.231]
[1756592250784,0.4926,4348.9,4348.8,0.231]
[1756592253984,0.1954,4348.9,4348.7,3.2078]
[1756592254286,0.4926,4348.9,4348.7,3.2078]
[1756592254483,0.4926,4348.8,4348.7,3.2078]
[1756592254683,0.4926,4348.8,4348.7,3.4388]
[1756592255881,0.4926,4348.8,4348.7,3.2078]
[1756592256186,0.4926,4348.8,4348.7,3.4388]
[1756592257778,0.4926,4348.8,4348.7,3.2078]
[1756592258387,0.4926,4348.8,4348.7,3.4388]
[1756592263587,0.3048,4348.8,4348.7,3.4388]
[1756592263789,0.5059,4348.8,4348.7,3.4388]
[1756592268493,0.3048,4349.4,4348.7,3.4388]
[1756592268698,3.2078,4350.1,4349.3,3.2078]
[1756592268898,0.5059,4349.9,4349.4,0.231]
[1756592269092,0.2011,4349.9,4349.4,0.231]
[1756592269293,0.1,4350.2,4349.8,3.2078]
[1756592269596,0.3048,4350.0,4349.9,0.231]
[1756592275501,0.1,4350.2,4349.9,0.231]
[1756592275708,0.4048,4350.2,4349.9,0.231]
[1756592277604,0.1,4350.2,4349.9,0.231]
[1756592277808,0.3048,4350.1,4349.9,0.231]
[1756592278311,0.1,4350.2,4349.9,0.231]
[1756592278997,0.4048,4350.2,4349.9,0.231]
[1756592279309,0.5059,4350.1,4349.9,0.231]
[1756592280708,0.2011,4349.9,4349.8,3.2078]
[1756592280909,0.5059,4349.9,4349.8,3.4388]
[1756592281104,0.3048,4349.9,4349.8,3.4388]
[1756592281304,0.4048,4350.2,4349.8,3.4388]
[1756592281509,0.1,4350.2,4349.8,3.4388]
[1756592281713,0.1,4350.2,4349.8,36.5518]
[1756592282112,0.1,4350.2,4349.8,36.3208]
[1756592282313,0.5059,4350.0,4349.9,0.231]
[1756592283209,0.2011,4350.0,4349.8,36.3208]
[1756592283411,0.3048,4349.9,4349.8,36.3208]
[1756592283611,0.3048,4349.9,4349.8,36.5518]
[1756592284011,0.4048,4350.2,4349.8,36.5518]
[1756592284716,0.1,4350.2,4349.8,36.5518]
[1756592284925,0.3048,4350.1,4349.8,36.5518]
[1756592285416,0.1,4350.2,4349.8,36.5518]
[1756592285619,0.3048,4350.1,4349.8,36.5518]
[1756592286023,0.1,4350.2,4349.8,36.5518]
[1756592287125,0.3048,4350.1,4349.8,36.5518]
[1756592287427,0.1,4350.2,4349.8,36.5518]
[1756592287621,0.2997,4350.1,4349.8,36.5518]
[1756592288019,0.1,4350.2,4349.8,36.5518]
[1756592288220,0.2997,4350.1,4349.8,36.5518]
[1756592288817,0.1,4350.2,4349.8,36.5518]
[1756592289025,0.2997,4350.1,4349.8,36.5518]
[1756592289226,0.1,4350.2,4349.8,36.5518]
[1756592289526,0.2997,4350.1,4349.8,36.5518]
[1756592289817,0.1,4350.2,4349.8,36.5518]
[1756592290022,0.1,4350.2,4349.9,0.231]
[1756592290223,0.3061,4350.2,4349.9,0.231]
[1756592290416,0.2997,4350.0,4349.9,0.231]
[1756592290617,0.5058,4350.0,4349.9,0.231]
[1756592291725,0.5058,4350.0,4349.8,36.3208]
[1756592291927,0.5058,4350.0,4349.9,0.231]
[1756592294421,0.2061,4350.0,4349.8,36.3208]
[1756592294627,0.2997,4349.9,4349.8,36.3208]
[1756592294924,0.2997,4349.9,4349.8,36.5518]
[1756592299126,0.2997,4349.9,4349.8,36.3208]
[1756592299324,0.2997,4349.9,4349.8,36.5518]
[1756592301828,0.2997,4349.9,4349.8,36.3208]
[1756592302027,0.2997,4349.9,4349.8,36.5518]
[1756592304135,0.2997,4349.9,4349.8,36.3208]
[1756592304336,0.2997,4349.9,4349.8,36.5518]
[1756592304937,0.2997,4349.9,4349.8,36.3208]
[1756592305235,0.2997,4349.9,4349.8,36.5518]
[1756592305437,0.1,4350.2,4349.8,36.5518]
[1756592305635,0.1,4350.2,4350.0,2.05863413]
[1756592305932,0.1,4350.2,4350.1,0.231]
[1756592309734,0.3997,4350.2,4350.1,0.231]
[1756592311743,0.1,4350.2,4350.1,0.231]
[1756592311933,0.1,4350.2,4350.1,2.28963413]
[1756592317244,0.1,4350.2,4350.1,2.29073413]
[1756592318742,0.1,4350.2,4350.1,5.49853413]
[1756592321344,0.1,4350.2,4350.1,2.29073413]
[1756592321643,0.1,4350.2,4350.1,5.49853413]
[1756592324348,0.1,4350.2,4350.1,2.29073413]
[1756592324541,0.1,4350.2,4350.1,5.49853413]
[1756592327548,0.1,4350.2,4350.1,5.26753413]
[1756592327748,0.1,4350.2,4350.1,5.49853413]
[1756592328448,0.4016,4350.2,4350.1,5.49853413]
[1756592328948,0.5907,4350.2,4350.1,5.49853413]
[1756592334353,0.5907,4350.2,4350.1,3.4399]
[1756592341959,0.1,4350.2,4350.1,3.4399]
[1756592343360,0.4016,4350.2,4350.1,3.4399]
[1756592345455,0.5907,4350.2,4350.1,3.4399]
[1756592346857,0.5907,4350.2,4350.1,3.2078]
[1756592347060,4.82058,4350.2,4350.1,3.4388]
[1756592348760,4.5907,4350.2,4350.1,3.4388]
[1756592351565,4.5907,4350.2,4350.1,3.2078]
[1756592351766,0.5907,4350.2,4350.1,3.4388]
[1756592356672,4.5907,4350.2,4350.1,0.231]
[1756592358363,4.5859,4350.2,4350.1,0.231]
[1756592362569,4.5859,4350.2,4349.8,33.113]
[1756592362775,0.4866,4349.9,4349.8,33.113]
[1756592362977,0.4866,4349.9,4349.8,33.344]
[1756592379885,0.2968,4349.9,4349.8,33.344]
[1756592380081,0.1,4350.2,4349.8,33.344]
[1756592380989,0.1,4350.2,4349.8,0.231]
[1756592381585,0.2899,4350.1,4349.8,0.231]
[1756592386783,0.1,4350.2,4349.8,0.231]
[1756592387084,0.2899,4350.1,4349.8,0.231]
[1756592387484,0.2902,4350.2,4349.8,0.231]
[1756592387788,0.1,4350.2,4349.8,0.231]
[1756592387984,0.2902,4350.2,4349.8,0.231]
[1756592388185,0.1,4350.2,4349.8,0.231]
[1756592388387,0.2899,4350.1,4349.8,0.231]
[1756592388688,0.1,4350.2,4349.8,0.231]
[1756592388890,0.1902,4350.1,4349.8,0.231]
[1756592389081,0.2899,4350.1,4349.8,0.231]
[1756592389281,0.2899,4350.0,4349.8,0.231]
[1756592389490,0.2902,4350.2,4349.8,0.231]
[1756592389689,0.2899,4350.1,4349.8,0.231]
[1756592389990,0.1,4350.2,4349.8,0.231]
[1756592390192,0.1902,4350.1,4349.8,0.231]
[1756592390392,0.2902,4350.2,4349.8,0.231]
[1756592390685,0.1902,4350.1,4349.8,0.231]
[1756592390892,0.2899,4350.0,4349.8,0.231]
[1756592391392,0.1,4350.2,4349.8,0.231]
[1756592391692,0.1902,4350.1,4349.8,0.231]
[1756592391892,0.2899,4350.1,4349.8,0.231]
[1756592392094,0.2899,4350.0,4349.8,0.231]
[1756592392293,0.1,4350.2,4349.8,0.231]
[1756592392591,0.1902,4350.1,4349.8,0.231]
[1756592392792,0.2902,4350.2,4349.8,0.231]
[1756592392997,0.1,4350.2,4349.8,0.231]
[1756592393188,0.1902,4350.1,4349.8,0.231]
[1756592393387,0.1,4350.2,4349.8,0.231]
[1756592393583,0.2899,4350.1,4349.8,0.231]
[1756592393790,0.1,4350.2,4349.8,0.231]
[1756592393992,0.1902,4350.1,4349.8,0.231]
[1756592394292,0.2902,4350.2,4349.8,0.231]
[1756592394487,0.2899,4350.1,4349.8,0.231]
[1756592394687,0.2899,4350.0,4349.8,0.231]
[1756592394884,0.2899,4350.9,4349.9,4.22989]
[1756592395092,0.2899,4350.8,4350.6,3.2078]
[1756592395397,0.2899,4351.7,4350.7,0.232]
[1756592395601,0.2899,4351.5,4350.7,0.232]
[1756592398089,0.4801,4351.5,4350.7,0.232]
[1756592398290,3.2078,4351.9,4351.1,3.2078]
[1756592398489,0.2899,4351.8,4351.2,0.231]
[1756592401788,3.2078,4352.5,4351.2,0.231]
[1756592401993,0.2899,4351.7,4351.6,3.2078]
[1756592402300,0.2899,4351.7,4351.6,3.4398]
[1756592405200,0.2899,4352.4,4351.6,3.4398]
[1756592406390,3.2078,4352.5,4351.6,3.4398]
[1756592407098,0.1902,4352.4,4351.6,3.4398]
[1756592407304,0.1902,4352.3,4351.6,3.4398]
[1756592407504,0.1884,4352.2,4351.6,3.4398]
[1756592407701,3.2078,4352.5,4351.6,3.4398]
[1756592408101,0.3028,4352.4,4351.6,3.4398]
[1756592408299,3.2078,4352.5,4351.6,3.4398]
[1756592408502,0.4912,4352.3,4351.6,3.4398]
[1756592408802,0.4912,4352.3,4352.2,3.2078]
[1756592409003,0.4912,4352.3,4352.2,3.4398]
[1756592418618,0.3028,4352.3,4352.2,3.4398]
[1756592419617,0.1884,4352.9,4352.2,3.4398]
[1756592419818,0.3028,4352.7,4352.2,3.4398]
[1756592420114,3.43755,4353.0,4352.2,3.4398]
[1756592420315,0.3028,4352.9,4352.2,3.4398]
[1756592420516,3.2078,4353.0,4352.2,3.4398]
[1756592420821,3.43755,4353.0,4352.2,3.4398]
[1756592421318,3.2078,4353.0,4352.2,3.4398]
[1756592421521,0.3028,4352.9,4352.2,3.4398]
[1756592421720,0.3028,4352.8,4352.2,3.4398]
[1756592421919,0.4912,4352.7,4352.2,3.4398]
[1756592422115,0.3028,4352.6,4352.2,3.4398]
[1756592422922,0.1884,4352.8,4352.2,3.4398]
[1756592423120,0.1884,4352.7,4352.2,3.4398]
[1756592423327,3.2078,4353.0,4352.2,3.4398]
[1756592423526,0.3028,4352.8,4352.2,3.4398]
[1756592423823,0.4912,4352.8,4352.2,3.4398]
[1756592424026,0.1884,4352.8,4352.3,0.22974999]
[1756592424214,0.4912,4352.8,4352.4,0.231]
[1756592424724,0.3028,4352.8,4352.4,0.231]
[1756592425624,3.3962,4353.0,4352.4,0.231]
[1756592425820,0.231,4354.1,4352.4,0.231]
[1756592426027,0.3028,4353.4,4352.4,0.231]
[1756592426529,0.3028,4353.2,4352.4,0.231]
[1756592438128,0.1884,4352.5,4352.2,3.2078]
[1756592438337,0.4975,4352.3,4352.2,3.2078]
[1756592438531,0.3054,4352.3,4352.2,3.4388]
[1756592439930,0.3054,4352.3,4352.2,0.231]
[1756592440137,0.4975,4352.3,4352.2,3.4388]
[1756592444828,0.4975,4352.3,4352.2,3.2078]
[1756592445131,4.72727,4352.3,4352.2,0.231]
[1756592445338,0.1921,4351.8,4351.7,3.2078]
[1756592445536,0.4975,4351.8,4351.7,3.4388]
[1756592453036,0.4975,4351.8,4351.7,3.2078]
[1756592453342,0.4975,4351.8,4351.7,3.4388]
[1756592454036,0.4975,4351.8,4351.7,0.231]
[1756592454242,0.4975,4351.8,4351.7,3.4388]
[1756592463547,0.4975,4351.8,4351.7,3.2078]
[1756592463743,0.4975,4351.8,4351.7,3.4388]
[1756592464049,0.3054,4351.8,4351.7,3.4388]
[1756592464252,0.4975,4351.8,4351.7,3.4388]
[1756592466249,0.4975,4351.8,4351.7,3.2078]
[1756592466445,0.4975,4351.8,4351.7,3.4388]
[1756592468452,0.3054,4351.8,4351.7,3.4388]
[1756592468947,0.3061,4353.0,4351.7,3.4388]
[1756592469146,0.3061,4352.8,4351.7,3.4388]
[1756592469546,0.3061,4353.0,4351.7,3.4388]
[1756592469746,0.59839113,4352.9,4351.7,3.4388]
[1756592469948,0.59839113,4352.8,4351.7,3.4388]
[1756592470154,3.2078,4353.1,4351.7,3.4388]
[1756592470349,0.1969,4352.6,4351.7,3.4388]
[1756592470548,0.3061,4352.4,4351.7,3.4388]
[1756592470744,0.503,4352.4,4351.7,3.4388]
[1756592470956,0.3061,4352.3,4351.7,3.4388]
[1756592471153,0.503,4352.3,4351.7,3.4388]
[1756592473259,0.3061,4352.2,4351.7,3.4388]
[1756592473454,0.3061,4352.9,4351.7,3.4388]
[1756592473652,0.3061,4352.7,4351.7,3.4388]
[1756592473853,0.22976001,4352.9,4351.7,3.4388]
[1756592474058,0.59884875,4352.8,4351.7,3.4388]
[1756592474253,0.59884875,4352.7,4351.7,3.4388]
[1756592474453,0.3061,4352.5,4351.7,3.4388]
[1756592474658,0.3061,4352.9,4351.7,3.4388]
[1756592474858,0.59914911,4352.8,4351.7,3.4388]
[1756592475153,0.59914911,4352.7,4351.7,3.4388]
[1756592475361,0.503,4352.4,4351.7,3.4388]
[1756592475659,0.503,4352.3,4351.7,3.4388]
[1756592476252,0.3061,4353.0,4351.7,3.2078]
[1756592476459,0.503,4351.9,4351.8,0.231]
[1756592477059,0.3061,4351.9,4351.8,0.231]
[1756592479762,0.3061,4351.9,4351.7,3.2078]
[1756592479961,3.2078,4353.1,4351.8,0.231]
[1756592479962,0.3061,4353.0,4351.8,0.231]
[1756592480155,0.3061,4352.8,4351.8,0.231]
[1756592480352,0.3061,4351.8,4351.7,3.2078]
[1756592480654,0.3061,4351.8,4351.7,3.4388]
[1756592480655,0.503,4351.8,4351.7,3.4388]
[1756592481954,0.503,4351.8,4351.7,3.2078]
[1756592482157,0.503,4351.4,4351.2,36.3028]
[1756592482354,0.3061,4351.3,4351.2,33.095]
[1756592482553,0.3061,4351.3,4351.2,33.326]
[1756592485261,0.503,4350.7,4350.6,3.2078]
[1756592485563,0.503,4350.7,4350.6,3.4388]
[1756592489863,0.503,4350.7,4350.6,0.231]
[1756592490169,0.503,4349.7,4349.6,3.2078]
[1756592490365,0.503,4349.7,4349.6,3.4388]
[1756592490666,0.3061,4349.7,4349.6,3.4388]
[1756592492461,0.503,4349.7,4349.6,3.4388]
[1756592492668,0.1969,4349.7,4349.4,33.097]
[1756592492865,0.503,4349.5,4349.4,33.097]
[1756592493058,0.503,4349.5,4349.4,33.328]
[1756592495263,0.3061,4349.5,4349.4,33.328]
[1756592498666,0.3061,4349.5,4349.4,33.097]
[1756592498865,0.3061,4349.5,4349.4,33.328]
[1756592499871,0.3061,4349.5,4349.4,33.097]
[1756592500070,0.503,4349.5,4349.4,0.231]
[1756592500368,0.2059,4349.2,4349.1,3.2078]
[1756592500564,0.4901,4349.2,4349.1,3.4388]
[1756592502970,0.4901,4349.2,4349.1,0.231]